bitfinex/quotes_ETHUSD_20251008
["timestamp","ask_amount","ask_price","bid_price","bid_amount"]
[1759924540628,2.71495539,4495.1,4495.0,3.36412]
[1759924541187,2.71493924,4495.1,4495.0,3.36412]
[1759924543421,4.93958385,4495.1,4495.0,2.92912]
[1759924543714,4.93958385,4495.1,4495.0,2.6232]
[1759924544308,4.93958385,4495.1,4495.0,3.0602]
[1759924544508,4.93958385,4495.1,4495.0,0.001]
[1759924544818,4.93958385,4495.1,4495.0,2.512]
[1759924545217,4.93958385,4495.1,4495.0,2.949]
[1759924546529,4.93958385,4495.1,4495.0,2.512]
[1759924546717,4.93878385,4495.1,4495.0,2.512]
[1759924547933,5.03958385,4495.1,4495.0,2.512]
[1759924548137,7.13399366,4495.1,4495.0,2.512]
[1759924549521,7.13399366,4495.1,4495.0,0.001]
[1759924550338,7.13399366,4495.1,4494.8,0.001]
[1759924550339,2.22474359,4494.9,4494.8,0.001]
[1759924550511,4.82888283,4494.9,4494.8,0.001]
[1759924550713,5.62471766,4494.9,4494.8,0.001]
[1759924550920,7.37191611,4494.9,4494.8,0.001]
[1759924551316,13.69608128,4494.9,4494.8,0.001]
[1759924552845,13.69585353,4494.9,4494.8,0.001]
[1759924559448,14.29093344,4494.9,4494.8,0.001]
[1759924563323,14.19013344,4494.9,4494.8,0.001]
[1759924563753,13.59505353,4494.9,4494.8,0.001]
[1759924563955,12.6175074,4494.9,4494.8,0.001]
[1759924566035,12.6175074,4494.9,4494.8,0.1122]
[1759924566236,12.6175074,4494.9,4494.8,0.565]
[1759924566452,8.47252089,4494.9,4494.8,0.565]
[1759924566837,12.14017813,4494.9,4494.8,0.565]
[1759924567147,9.91543454,4494.9,4494.8,0.565]
[1759924568155,12.14017813,4494.9,4494.8,0.565]
[1759924568355,12.14017813,4494.9,4494.8,0.1122]
[1759924568847,12.61622883,4494.9,4494.8,0.1122]
[1759924569571,12.61622883,4494.9,4494.8,0.001]
[1759924569771,12.61542883,4494.9,4494.8,0.001]
[1759924571744,12.71532883,4494.9,4494.8,0.001]
[1759924572263,14.20952923,4494.9,4494.8,0.001]
[1759924573167,14.20961173,4494.9,4494.8,0.001]
[1759924574363,14.80469164,4494.9,4494.8,0.001]
[1759924576082,14.80479501,4494.9,4494.8,0.001]
[1759924576879,14.80482437,4494.9,4494.8,0.001]
[1759924577082,4.14479541,4494.8,4494.3,0.001]
[1759924577266,2.22513962,4494.1,4493.1,0.01]
[1759924577449,5.42352735,4494.1,4493.1,0.01]
[1759924577650,2.22533769,4493.7,4493.1,0.01]
[1759924577872,2.22553579,4493.3,4493.1,0.01]
[1759924578050,4.76685504,4493.3,4493.1,0.01]
[1759924578251,5.34400574,4493.3,4493.1,0.01]
[1759924578572,6.01305048,4493.3,4493.1,0.01]
[1759924580485,6.01260952,4493.3,4493.1,0.01]
[1759924583083,4.14558532,4493.2,4493.1,0.01]
[1759924583248,5.7224483,4493.2,4493.1,0.01]
[1759924583446,5.8235483,4493.2,4493.1,0.01]
[1759924584286,5.8235483,4493.2,4492.1,0.01]
[1759924584287,2.22608076,4492.2,4492.1,0.01]
[1759924584893,4.81525235,4492.2,4492.1,0.01]
[1759924592893,4.81445235,4492.2,4492.1,0.01]
[1759924594501,4.91555235,4492.2,4492.1,0.01]
[1759924594912,4.81445235,4492.2,4492.1,0.01]
[1759924598000,4.81445235,4492.2,4492.1,0.4494]
[1759924598624,4.81445235,4492.2,4492.1,0.01]
[1759924599523,4.91555235,4492.2,4492.1,0.01]
[1759924601725,4.81445235,4492.2,4492.1,0.01]
[1759924604205,5.02054801,4492.2,4492.1,0.01]
[1759924604832,5.02056956,4492.2,4492.1,0.01]
[1759924605196,5.12166956,4492.2,4492.1,0.01]
[1759924605497,5.59681277,4492.2,4492.1,0.01]
[1759924605693,6.39021372,4492.2,4492.1,0.01]
[1759924606136,6.39021372,4492.2,4492.1,0.011]
[1759924606624,6.39221372,4492.2,4492.1,0.011]
[1759924606997,6.29111372,4492.2,4492.1,0.011]
[1759924607193,5.49771277,4492.2,4492.1,0.011]
[1759924610731,5.59881277,4492.2,4492.1,0.011]
[1759924611627,5.49771277,4492.2,4492.1,0.011]
[1759924611832,5.59881277,4492.2,4492.1,0.011]
[1759924612630,5.49771277,4492.2,4492.1,0.011]
[1759924613736,3.27231234,4492.2,4492.1,0.011]
[1759924613937,3.27231234,4492.2,4492.1,0.6182613]
[1759924614736,3.27231234,4492.2,4492.1,0.596]
[1759924614950,3.27228856,4492.2,4492.1,0.596]
[1759924615133,3.27228856,4492.2,4492.1,0.6182613]
[1759924615637,5.49836932,4492.2,4492.1,0.6182613]
[1759924615839,5.49756932,4492.2,4492.1,0.6182613]
[1759924617427,5.49756932,4492.2,4492.1,0.596]
[1759924618235,5.49756932,4492.2,4492.1,0.6182613]
[1759924618236,3.27148856,4492.2,4492.1,0.6182613]
[1759924618611,5.49756932,4492.2,4492.1,0.6182613]
[1759924619209,5.49756932,4492.2,4492.1,0.596]
[1759924619408,5.49756932,4492.2,4492.1,0.6182613]
[1759924620347,3.27148856,4492.2,4492.1,0.93128743]
[1759924620517,2.58957159,4492.2,4492.1,1.14728743]
[1759924620836,2.58957159,4492.2,4492.1,1.12502613]
[1759924621426,2.58957159,4492.2,4492.1,0.90902613]
[1759924622133,2.58957159,4492.2,4492.1,1.12502613]
[1759924623135,4.81565235,4492.2,4492.1,0.1222]
[1759924623442,5.49865574,4492.2,4492.1,2.6382]
[1759924624136,5.59975574,4492.2,4492.1,2.6382]
[1759924624448,5.49865574,4492.2,4492.1,2.6382]
[1759924626249,5.5997444,4492.2,4492.1,2.6382]
[1759924627116,5.59974478,4492.2,4492.1,0.011]
[1759924627316,6.38231769,4492.2,4492.1,2.527]
[1759924627512,5.59974478,4492.2,4492.1,2.527]
[1759924628351,5.49864478,4492.2,4492.1,2.527]
[1759924631728,5.49864478,4492.2,4492.1,2.9554]
[1759924632465,5.49864478,4492.2,4492.1,2.527]
[1759924633658,5.49864478,4492.2,4492.1,2.9554]
[1759924634232,0.87628798,4492.2,4492.1,3.47806]
[1759924634437,0.002,4492.2,4492.1,4.1339213]
[1759924634745,0.002,4492.2,4492.1,18.6339213]
[1759924634946,0.002,4492.2,4492.1,18.61166]
[1759924637776,0.002,4492.2,4492.1,4.11166]
[1759924637978,0.002,4492.2,4492.1,4.1339213]
[1759924638269,0.002,4492.2,4492.1,18.6339213]
[1759924638471,0.002,4492.2,4492.1,18.61166]
[1759924638864,0.0012,4492.2,4492.1,18.61166]
[1759924641174,0.0012,4492.2,4492.1,4.11166]
[1759924641695,0.0012,4492.2,4492.1,18.61166]
[1759924644689,0.0012,4492.2,4492.1,4.11166]
[1759924644894,0.0012,4492.2,4492.1,4.1339213]
[1759924645262,0.0012,4492.2,4492.1,18.6339213]
[1759924645465,0.0012,4492.2,4492.1,18.61166]
[1759924648168,0.0012,4492.2,4492.1,4.11166]
[1759924648467,0.0012,4492.2,4492.1,4.1339213]
[1759924648698,0.0012,4492.2,4492.1,18.6339213]
[1759924648889,0.0012,4492.2,4492.1,18.61166]
[1759924650573,0.0012,4492.2,4492.1,20.94899031]
[1759924651530,0.0012,4492.2,4492.1,18.72286]
[1759924655823,0.0012,4492.2,4492.1,16.20686]
[1759924656120,0.0012,4492.2,4492.1,18.72086]
[1759924656922,0.0012,4492.2,4492.1,16.20686]
[1759924657127,0.0012,4492.2,4492.1,18.72086]
[1759924657324,0.0012,4492.2,4492.1,16.20686]
[1759924657500,0.0012,4492.2,4492.1,18.72086]
[1759924660119,0.0012,4492.2,4492.1,4.22086]
[1759924660926,0.0012,4492.2,4492.1,18.72086]
[1759924661920,0.0004,4492.2,4492.1,18.72086]
[1759924670666,0.0004,4492.2,4492.1,16.20686]
[1759924670864,0.0004,4492.2,4492.1,18.71986]
[1759924671062,0.0004,4492.2,4492.1,15.57326]
[1759924671268,0.0004,4492.2,4492.1,3.2796]
[1759924671460,0.0004,4492.2,4492.1,3.9132]
[1759924675748,0.0004,4492.2,4492.1,18.4132]
[1759924684859,0.002,4492.7,4492.1,18.4132]
[1759924685189,0.0016,4492.7,4492.6,0.7448]
[1759924685417,0.0016,4492.7,4492.6,3.2578]
[1759924685562,0.0016,4492.7,4492.6,3.6884]
[1759924687197,0.0016,4492.7,4492.6,4.05724]
[1759924688269,0.0016,4492.7,4492.6,4.07949882]
[1759924689218,0.0016,4492.7,4492.6,18.57949882]
[1759924689415,0.0016,4492.7,4492.6,18.55724]
[1759924692399,0.0016,4492.7,4492.6,16.04424]
[1759924692613,0.0016,4492.7,4492.6,18.1874]
[1759924695486,0.0016,4492.7,4492.6,3.6874]
[1759924696114,0.0016,4492.7,4492.6,18.1874]
[1759924696934,0.67051048,4492.7,4492.6,18.1874]
[1759924699030,0.67051048,4492.7,4492.6,3.6874]
[1759924699548,0.67051048,4492.7,4492.6,18.1874]
[1759924701822,4.81634349,4492.7,4492.6,18.1874]
[1759924702034,2.59051048,4492.7,4492.6,18.1874]
[1759924704558,2.59051048,4492.7,4492.6,20.00614]
[1759924704762,1.9216,4492.7,4492.6,20.00614]
[1759924708066,1.9208,4492.7,4492.6,20.00714]
[1759924714088,1.9208,4492.7,4492.6,15.6764]
[1759924714279,1.9208,4492.7,4492.6,18.1884]
[1759924714654,2.58971198,4492.7,4492.6,18.1884]
[1759924717082,2.58971198,4492.7,4492.6,15.6764]
[1759924717282,2.58971198,4492.7,4492.6,18.1884]
[1759924719880,2.58971198,4492.7,4492.6,20.00724]
[1759924719881,1.9208,4492.7,4492.6,20.00724]
[1759924720104,1.9208,4492.7,4492.6,5.50724]
[1759924720415,1.9208,4492.7,4492.6,3.6884]
[1759924720621,1.9208,4492.7,4492.6,18.1884]
[1759924722214,4.14663301,4492.7,4492.6,18.1884]
[1759924722428,4.81557631,4492.7,4492.6,18.1884]
[1759924723104,2.5897433,4492.7,4492.6,18.1884]
[1759924725213,2.5897433,4492.7,4492.6,3.6884]
[1759924725576,2.5897433,4492.7,4492.6,18.1884]
[1759924726116,1.9208,4492.7,4492.6,18.86347291]
[1759924728416,1.9208,4492.7,4492.6,18.1884]
[1759924728628,2.58971347,4492.7,4492.6,18.1884]
[1759924731128,2.58891347,4492.7,4492.6,18.1884]
[1759924735437,2.58891347,4492.7,4492.6,15.6764]
[1759924735638,2.58891347,4492.7,4492.6,18.1884]
[1759924736936,4.81474648,4492.7,4492.6,18.1873]
[1759924737310,4.81474648,4492.7,4492.6,3.6873]
[1759924738005,4.81474648,4492.7,4492.6,0.5417]
[1759924738207,4.81474648,4492.7,4492.6,3.0537]
[1759924739143,4.81474648,4492.7,4492.6,2.6242]
[1759924741345,8.67245852,4492.7,4492.6,0.1122]
[1759924741642,10.16503147,4492.7,4492.6,2.6242]
[1759924741945,10.16703147,4492.7,4492.6,2.6242]
[1759924743354,5.50097108,4492.7,4492.6,3.0793]
[1759924744113,5.50097108,4492.7,4492.6,2.6242]
[1759924746367,5.0238346,4492.7,4492.6,2.6242]
[1759924748345,4.81674648,4492.7,4492.6,3.0793]
[1759924749658,4.81674648,4492.7,4492.6,2.6242]
[1759924750230,4.81674648,4492.7,4492.6,3.0793]
[1759924751263,8.67445852,4492.7,4492.6,3.0793]
[1759924752563,8.67445852,4492.7,4492.6,2.6242]
[1759924752761,9.35733493,4492.7,4492.6,2.6242]
[1759924753667,9.35734373,4492.7,4492.6,2.6242]
[1759924753850,9.35734373,4492.7,4492.6,3.0793]
[1759924754048,8.67365852,4492.7,4492.6,3.0793]
[1759924754652,4.81594648,4492.7,4492.6,3.0793]
[1759924755850,0.67091347,4492.7,4492.6,3.2578]
[1759924756054,0.67091347,4492.7,4492.6,3.90963]
[1759924756252,0.002,4492.7,4492.6,3.90963]
[1759924756655,0.002,4492.7,4492.6,18.40963]
[1759924758072,0.002,4492.7,4492.6,14.9561]
[1759924758260,0.002,4492.7,4492.6,17.4681]
[1759924758468,0.67097761,4492.7,4492.6,17.4681]
[1759924759676,0.67097761,4492.7,4492.6,2.9681]
[1759924760058,0.67097761,4492.7,4492.6,17.4681]
[1759924763160,0.002,4492.7,4492.6,19.84851]
[1759924765974,0.002,4492.7,4492.6,19.95971]
[1759924767357,0.002,4492.7,4492.6,5.45971]
[1759924767559,0.002,4492.7,4492.6,3.7129]
[1759924767760,0.002,4492.7,4492.6,15.7009]
[1759924767977,0.002,4492.7,4492.6,18.2129]
[1759924773565,0.002,4492.7,4492.6,3.7129]
[1759924774067,0.002,4492.7,4492.6,18.2129]
[1759924774366,0.002,4492.7,4492.6,20.25901806]
[1759924777098,0.0012,4492.7,4492.6,20.25901806]
[1759924780500,0.0012,4492.7,4492.6,17.74701806]
[1759924780696,0.0012,4492.7,4492.6,20.25801806]
[1759924797217,0.0012,4492.7,4492.6,22.48390062]
[1759924800337,0.0012,4492.7,4492.6,17.74701806]
[1759924800535,0.0004,4492.7,4492.6,20.25801806]
[1759924800922,0.0004,4492.7,4492.6,22.48390062]
[1759924803447,0.0004,4492.7,4492.6,17.74701806]
[1759924803652,0.0004,4492.7,4492.6,3.7119]
[1759924804019,0.0004,4492.7,4492.6,18.2119]
[1759924804223,5.01511617,4492.7,4492.6,18.2119]
[1759924806424,1.9204,4492.7,4492.6,18.2119]
[1759924806720,1.9204,4492.7,4492.6,20.43778256]
[1759924806920,1.9204,4492.7,4492.6,22.68955301]
[1759924808150,0.0004,4492.7,4492.6,22.68955301]
[1759924809317,0.0004,4492.7,4492.6,22.83955301]
[1759924809744,0.0004,4492.7,4492.6,8.33955301]
[1759924810048,0.0004,4492.7,4492.6,6.08778256]
[1759924810278,0.0004,4492.7,4492.6,20.58778256]
[1759924815169,0.0004,4492.7,4492.6,18.07678256]
[1759924815479,0.0004,4492.7,4492.6,20.58778256]
[1759924818759,0.0004,4492.7,4492.6,18.07678256]
[1759924818958,0.0004,4492.7,4492.6,20.10705888]
[1759924819813,0.0004,4492.7,4492.6,17.88117632]
[1759924819965,0.0004,4492.7,4492.6,20.10705888]
[1759924823403,0.0016,4493.1,4492.7,2.85942149]
[1759924823578,0.0016,4493.1,4492.7,3.29162149]
[1759924823773,0.0016,4493.1,4493.0,0.1112]
[1759924823981,0.0016,4493.1,4493.0,0.13345684]
[1759924824180,0.0016,4493.1,4493.0,0.56565684]
[1759924826694,0.0016,4493.1,4493.0,15.06565684]
[1759924826898,0.0016,4493.1,4493.0,15.0434]
[1759924827311,0.0016,4493.1,4493.0,16.83367716]
[1759924828512,0.0016,4493.1,4493.0,19.69296155]
[1759924846338,0.0008,4493.1,4493.0,19.69296155]
[1759924859242,0.0008,4493.1,4493.0,19.69396155]
[1759924860664,0.0008,4493.1,4493.0,19.78310807]
[1759924869382,0.002,4493.2,4493.1,2.85923486]
[1759924869607,0.002,4493.2,4493.1,5.58460531]
[1759924869760,0.002,4493.2,4493.1,3.33283486]
[1759924869960,0.002,4493.2,4493.1,17.92198138]
[1759924870380,0.002,4493.2,4493.1,22.22198138]
[1759924874004,0.002,4493.2,4492.6,0.151]
[1759924874490,2.22761154,4493.2,4492.6,0.151]
[1759924874694,1.92,4493.0,4492.6,0.151]
[1759924874863,0.66337883,4493.1,4492.6,0.151]
[1759924875067,6.23417941,4493.0,4492.6,0.151]
[1759924875266,0.66337883,4493.1,4492.6,0.001]
[1759924875487,0.002,4493.2,4492.6,0.02325882]
[1759924875796,0.002,4493.2,4492.7,0.02225833]
[1759924875965,0.002,4493.2,4492.8,0.6336]
[1759924876166,0.002,4493.2,4492.9,0.02225733]
[1759924876362,0.002,4493.2,4493.0,0.6336]
[1759924876591,0.002,4493.2,4493.1,0.02225634]
[1759924876791,0.002,4493.2,4493.1,1.12945634]
[1759924877602,0.002,4493.2,4493.1,3.3550912]
[1759924877809,0.002,4493.2,4493.1,3.91317193]
[1759924878192,0.002,4493.2,4493.1,18.41317193]
[1759924878406,0.002,4493.2,4493.1,18.39091559]
[1759924880285,0.002,4493.2,4493.1,17.83283486]
[1759924883506,0.002,4493.2,4493.1,17.98283486]
[1759924883894,0.002,4493.2,4493.1,18.09403486]
[1759924886212,0.002,4493.2,4493.1,3.59403486]
[1759924886412,0.002,4493.2,4493.1,3.6162912]
[1759924886616,0.002,4493.2,4493.1,18.09403486]
[1759924887299,0.002,4493.2,4493.1,20.12610907]
[1759924891486,0.002,4493.2,4493.1,20.01490907]
[1759924891691,0.002,4493.2,4493.1,20.12610907]
[1759924892407,0.0012,4493.2,4493.1,20.12610907]
[1759924893398,0.0012,4493.2,4493.1,22.65310907]
[1759924894107,0.0012,4493.2,4493.1,20.12610907]
[1759924894309,0.0012,4493.2,4493.1,22.65310907]
[1759924897842,1e-08,4493.6,4493.5,2.85903674]
[1759924898003,1e-08,4493.6,4493.5,5.75655477]
[1759924898338,1e-08,4493.6,4493.5,6.29230041]
[1759924898506,1e-08,4493.6,4493.5,20.79230041]
[1759924903031,1e-08,4493.6,4493.5,18.26630041]
[1759924903237,1e-08,4493.6,4493.5,23.10830041]
[1759924903741,1e-08,4493.6,4493.5,20.79130041]
[1759924904454,1e-08,4493.6,4493.5,20.15770041]
[1759924904643,1e-08,4493.6,4493.5,20.79130041]
[1759924909957,1e-08,4493.6,4493.5,18.26630041]
[1759924910159,1e-08,4493.6,4493.5,20.44103674]
[1759924913561,1e-08,4493.6,4493.5,17.91703674]
[1759924913748,1e-08,4493.6,4493.5,20.44103674]
[1759924914141,1e-08,4493.6,4493.5,5.94103674]
[1759924914758,1e-08,4493.6,4493.5,20.44103674]
[1759924915332,0.00120001,4493.7,4493.6,2.85898721]
[1759924915545,0.00120001,4493.7,4493.6,3.35034108]
[1759924915934,0.00120001,4493.7,4493.6,5.60211153]
[1759924916130,0.00120001,4493.7,4493.6,5.57985766]
[1759924916360,0.00120001,4493.7,4493.6,3.32808721]
[1759924916542,0.00120001,4493.7,4493.6,17.85034108]
[1759924916857,0.00120001,4493.7,4493.6,17.82808721]
[1759924924273,0.00120001,4493.7,4493.6,20.35008721]
[1759924929587,0.00120001,4493.7,4493.6,17.82808721]
[1759924929899,0.00120001,4493.7,4493.6,20.34908721]
[1759924930195,0.00120001,4493.7,4493.6,17.82808721]
[1759924930391,0.00120001,4493.7,4493.6,20.34908721]
[1759924932768,0.00120001,4493.7,4493.6,15.6027]
[1759924932971,0.00120001,4493.7,4493.6,18.1237]
[1759924935100,0.00120001,4493.7,4493.6,20.34908721]
[1759924936098,0.00120001,4493.7,4493.6,22.60085766]
[1759924938400,0.00040001,4493.7,4493.6,22.60085766]
[1759924938811,0.00040001,4493.7,4493.6,26.90085766]
[1759924940108,0.00040001,4493.7,4493.6,22.60085766]
[1759924942427,0.00040001,4493.7,4493.6,17.85447045]
[1759924942624,0.00040001,4493.7,4493.6,15.6027]
[1759924942823,0.00040001,4493.7,4493.6,18.1227]
[1759924943323,0.00040001,4493.7,4493.6,14.9691]
[1759924943526,0.00040001,4493.7,4493.6,17.4891]
[1759924943725,0.00040001,4493.7,4493.6,18.1227]
[1759924947140,2.22538721,4493.6,4493.5,0.001]
[1759924947344,4.67740563,4493.6,4493.5,2.52]
[1759924947543,4.67740563,4493.6,4493.5,2.9946]
[1759924947912,4.67740563,4493.6,4493.5,2.52]
[1759924948114,4.67740563,4493.6,4493.5,0.001]
[1759924948315,5.61105916,4493.6,4493.5,0.001]
[1759924948644,5.61105916,4493.6,4493.5,0.671]
[1759924948945,5.76205916,4493.6,4493.5,0.671]
[1759924950417,5.30555916,4493.6,4493.5,0.671]
[1759924950858,4.67740563,4493.6,4493.5,0.671]
[1759924951953,2.45201842,4493.6,4493.5,0.671]
[1759924952154,0.00040001,4493.7,4493.5,1.1065]
[1759924952371,0.00040001,4493.7,4493.6,0.4355]
[1759924952577,0.00040001,4493.7,4493.6,14.9355]
[1759924954171,0.00040001,4493.7,4493.6,15.5691]
[1759924957279,0.00040001,4493.7,4493.6,15.6803]
[1759924961412,0.00160001,4493.8,4493.6,15.6803]
[1759924961581,0.00160001,4493.8,4493.7,2.519]
[1759924961775,0.00160001,4493.8,4493.7,2.9549]
[1759924962216,0.00160001,4493.8,4493.7,17.4549]
[1759924968033,2.22688818,4493.8,4493.7,17.4549]
[1759924968803,0.00160001,4493.8,4493.7,17.4549]
[1759924970230,0.00160001,4493.8,4493.7,19.49761691]
[1759924972002,0.00160001,4493.8,4493.7,22.3565546]
[1759924972207,0.00160001,4493.8,4493.7,22.6177546]
[1759924976151,0.00160001,4493.8,4493.7,24.9337546]
[1759924977222,0.00160001,4493.8,4493.7,20.0987546]
[1759924977429,0.00160001,4493.8,4493.7,24.9327546]
[1759924978461,0.00160001,4493.8,4493.7,22.6167546]
[1759924981763,0.00160001,4493.8,4493.7,22.70588125]
[1759924983778,1e-08,4494.0,4493.9,2.85883865]
[1759924983947,1e-08,4494.0,4493.9,7.79986148]
[1759924984274,1e-08,4494.0,4493.9,5.97033865]
[1759924984474,1e-08,4494.0,4493.9,20.55946193]
[1759924984673,0.00120001,4494.1,4494.0,2.85878914]
[1759924984879,0.00120001,4494.1,4494.0,3.00878914]
[1759924985173,0.00120001,4494.1,4494.0,3.56448914]
[1759924985475,0.00120001,4494.1,4494.0,19.3531316]
[1759924985671,0.00120001,4494.1,4494.0,19.33087971]
[1759924986851,0.002,4496.1,4494.4,2.8585911]
[1759924987051,0.002,4496.1,4494.6,2.85849209]
[1759924987250,0.002,4496.1,4494.6,3.50946624]
[1759924987468,0.002,4496.1,4494.6,18.45396624]
[1759924987682,0.002,4496.1,4494.6,18.54307582]
[1759924988788,1e-08,4494.9,4494.8,0.6336]
[1759924988951,1e-08,4495.6,4495.5,2.85804666]
[1759924989149,0.002,4496.1,4496.0,2.85779928]
[1759924989350,0.002,4496.1,4496.0,20.00824127]
[1759924989549,0.002,4496.1,4496.0,20.43049928]
[1759924991663,0.002,4496.1,4496.0,20.43049928]
[1759924994973,0.002,4496.1,4496.0,17.91349928]
[1759924995284,0.002,4496.1,4496.0,24.76718493]
[1759924997666,0.002,4496.1,4496.0,19.93618493]
[1759924997994,0.002,4496.1,4496.0,24.76618493]
[1759925000192,0.002,4496.1,4496.0,29.06618493]
[1759925000379,0.002,4496.1,4496.0,24.23618493]
[1759925000588,0.002,4496.1,4496.0,29.06518493]
[1759925002478,0.002,4496.1,4496.0,24.76518493]
[1759925007600,0.0012,4496.1,4496.0,24.76518493]
[1759925015205,0.0012,4496.1,4496.0,29.06518493]
[1759925019307,0.0012,4496.1,4496.0,29.06618493]
[1759925019613,0.0012,4496.1,4496.0,26.68618493]
[1759925020018,0.00024417,4496.1,4496.0,26.68618493]
[1759925021040,0.00024417,4496.1,4496.0,0.4529]
[1759925021315,0.00024417,4496.1,4495.5,0.001]
[1759925021521,0.00024417,4496.1,4495.6,2.527]
[1759925021884,0.00024417,4496.1,4495.7,2.528]
[1759925021885,3.85117076,4495.9,4495.7,2.528]
[1759925022128,2.22439718,4495.6,4495.5,0.001]
[1759925022300,2.30514149,4495.8,4495.5,0.001]
[1759925022496,2.30514149,4495.8,4495.6,2.181]
[1759925022718,0.00024417,4496.1,4495.6,2.181]
[1759925023020,0.00024417,4496.1,4495.7,0.65584347]
[1759925023320,4.14424875,4495.9,4495.8,2.529]
[1759925024018,1.92024417,4496.1,4495.8,2.7452]
[1759925024719,4.59899932,4496.0,4495.9,14.5]
[1759925024923,9.70962271,4496.0,4495.9,17.029]
[1759925025126,9.25482271,4496.0,4495.9,2.529]
[1759925025418,2.22439718,4495.6,4495.5,0.001]
[1759925025630,6.07556794,4495.6,4495.5,2.531]
[1759925026888,7.99556794,4495.6,4495.5,0.001]
[1759925027094,9.66435504,4495.6,4495.5,2.531]
[1759925028911,9.20955504,4495.6,4495.5,2.531]
[1759925030530,9.20875504,4495.6,4495.5,2.531]
[1759925030903,9.20875504,4495.6,4495.5,2.6422]
[1759925033332,7.99476794,4495.6,4495.5,2.6422]
[1759925033714,4.14359718,4495.6,4495.5,2.6422]
[1759925037034,4.59839718,4495.6,4495.5,2.6422]
[1759925037553,4.60039718,4495.6,4495.5,2.6422]
[1759925037723,4.60039718,4495.6,4495.5,2.6412]
[1759925038251,5.66798428,4495.6,4495.5,2.6412]
[1759925038730,5.21318428,4495.6,4495.5,2.6412]
[1759925041348,5.67588428,4495.6,4495.5,2.6412]
[1759925041730,5.21318428,4495.6,4495.5,2.6412]
[1759925041941,7.99676794,4495.6,4495.5,2.6412]
[1759925043154,7.99676794,4495.6,4495.5,2.64666]
[1759925044462,8.45946794,4495.6,4495.5,0.11766]
[1759925044624,8.45946794,4495.6,4495.5,2.64566]
[1759925045656,8.45946794,4495.6,4495.5,0.11766]
[1759925045828,2.22459512,4495.2,4495.1,0.001]
[1759925046035,7.23799158,4495.1,4495.0,0.001]
[1759925046241,7.70069158,4495.1,4495.0,1.1902]
[1759925046436,2.2250406,4494.3,4494.0,0.151]
[1759925046625,2.22509011,4494.2,4494.0,0.151]
[1759925046840,2.22509011,4494.2,4494.1,2.538]
[1759925047146,2.22509011,4494.2,4494.1,2.6492]
[1759925047462,7.70113708,4494.2,4494.1,2.6492]
[1759925048355,7.70113708,4494.2,4494.1,0.1212]
[1759925048555,7.70113708,4494.2,4494.1,2.6492]
[1759925048923,9.00308954,4494.2,4494.1,2.6492]
[1759925049533,9.00308954,4494.2,4494.0,0.001]
[1759925049534,4.14513962,4494.1,4494.0,0.001]
[1759925049770,2.22553579,4493.3,4493.2,0.001]
[1759925049922,7.23888276,4493.3,4493.2,0.1122]
[1759925050120,4.14558532,4493.2,4492.2,0.001]
[1759925050320,10.33247741,4492.8,4492.2,0.001]
[1759925050521,2.22595683,4492.5,4492.2,0.001]
[1759925050752,2.22608076,4492.2,4492.1,0.01]
[1759925050955,4.62242671,4492.2,4492.1,0.026]
[1759925051128,5.08512671,4492.2,4492.1,0.026]
[1759925051328,6.43359219,4492.2,4492.1,1e-08]
[1759925051572,2.22657641,4491.2,4490.2,14.5]
[1759925051859,2.22657641,4491.2,4491.1,2.538]
[1759925052061,2.68927641,4491.2,4491.1,2.538]
[1759925052759,2.22657641,4491.2,4491.1,2.538]
[1759925053632,2.22577641,4491.2,4491.1,2.538]
[1759925054334,2.22648977,4491.4,4491.1,2.538]
[1759925054529,2.2265393,4491.3,4491.1,2.6492]
[1759925054741,2.2265393,4491.3,4491.1,2.538]
[1759925055029,2.22652684,4491.3,4491.2,0.1112]
[1759925055451,2.22652684,4491.3,4491.2,2.6422]
[1759925055640,4.78382327,4491.3,4491.2,2.6422]
[1759925055842,5.24652327,4491.3,4491.2,2.6422]
[1759925056045,4.60922684,4491.3,4491.2,2.6422]
[1759925057335,2.3827,4491.3,4490.6,0.001]
[1759925057661,4.14682432,4490.7,4490.6,0.001]
[1759925057862,4.14682432,4490.7,4490.6,0.343]
[1759925058066,4.14682432,4490.7,4490.6,0.4542]
[1759925060036,2.22672306,4491.0,4490.6,0.6704]
[1759925060265,1.92,4491.3,4490.6,0.6704]
[1759925060427,1.92,4491.3,4490.9,0.1112]
[1759925060627,4.14653375,4491.3,4490.9,0.1112]
[1759925061341,2.22650127,4491.4,4490.7,0.6336]
[1759925061558,2.22650127,4491.4,4490.8,0.53655227]
[1759925061887,2.22614823,4492.1,4490.9,14.5]
[1759925061888,2.22654482,4491.3,4490.9,14.5]
[1759925062562,1.92,4491.8,4490.9,14.5]
[1759925062758,0.60470631,4492.9,4491.0,0.8498]
[1759925062759,2.85458902,4492.4,4491.0,0.8498]
[1759925062957,2.85458902,4492.4,4491.0,0.87206675]
[1759925062958,2.22630596,4491.8,4491.0,0.87206675]
[1759925063162,2.22623483,4491.9,4491.2,0.6336]
[1759925063478,2.22613927,4492.1,4491.4,0.6336]
[1759925064049,0.01,4492.9,4491.6,0.6336]
[1759925064254,2.22583483,4492.7,4491.7,15.37206328]
[1759925064532,0.01,4492.9,4491.7,15.3498]
[1759925064533,2.22608903,4492.2,4491.7,15.3498]
[1759925065541,2.22604074,4492.3,4491.7,15.3498]
[1759925065848,2.22604074,4492.3,4491.8,2.538]
[1759925066043,2.22608243,4492.2,4491.8,2.538]
[1759925066988,2.22613637,4492.1,4491.8,2.538]
[1759925067544,2.22608476,4492.2,4491.8,2.538]
[1759925068268,2.2261312,4492.1,4491.8,2.538]
[1759925068634,2.2262052,4492.0,4491.8,2.538]
[1759925068869,0.4627,4492.6,4491.8,2.538]
[1759925069080,2.22611737,4492.2,4491.8,2.538]
[1759925069374,2.22611737,4492.2,4491.9,14.5]